[Event "December 12 Early 2023"]
[Site "https://www.chess.com"]
[Date "2023.12.12"]
[Round "8"]
[White "Melikhov, Evgeny V."]
[Black "Al-Tarboush, Ward"]
[Result "1-0"]
[Board "76"]
[TimeControl "180+1"]
[WhiteFideId "4122046"]
[BlackFideId "7601450"]
[WhiteElo "2405"]
[BlackElo "2609"]
[WhiteTeam "GRE"]
[BlackTeam "NOR"]
[WhiteClock "0:00:24"]
[BlackClock "0:00:00"]

1. d4 {[%clk 0:03:00]}  Nf6 {[%clk 0:02:57]} 2. c4 {[%clk 0:03:00]}  b6 {[%clk 0:02:57]} 3. Nc3 {[%clk 0:03:00]}  Bb7 {[%clk 0:02:56]} 4. d5 {[%clk 0:03:00]}  e6 {[%clk 0:02:53]} 5. e4 {[%clk 0:02:59]}  Bb4 {[%clk 0:02:53]} 6. Bd3 {[%clk 0:02:53]}  Bxc3+ {[%clk 0:02:53]} 7. bxc3 {[%clk 0:02:53]}  Qe7 {[%clk 0:02:53]} 8. Be3 {[%clk 0:02:47]}  d6 {[%clk 0:02:46]} 9. Nf3 {[%clk 0:02:42]}  Nbd7 {[%clk 0:02:46]} 10. h3 {[%clk 0:02:35]}  exd5 {[%clk 0:02:44]} 11. exd5 {[%clk 0:02:32]}  Nc5 {[%clk 0:02:41]} 12. Bc2 {[%clk 0:02:25]}  O-O {[%clk 0:02:38]} 13. O-O {[%clk 0:02:25]}  Ba6 {[%clk 0:02:38]} 14. Nd4 {[%clk 0:02:02]}  Bxc4 {[%clk 0:02:34]} 15. Nf5 {[%clk 0:02:02]}  Qd7 {[%clk 0:02:24]} 16. Qd4 {[%clk 0:01:54]}  Bxf1 {[%clk 0:02:16]} 17. Bg5 {[%clk 0:01:07]}  Bd3 {[%clk 0:01:57]} 18. Bxd3 {[%clk 0:01:02]}  Ne8 {[%clk 0:01:45]} 19. Ne7+ {[%clk 0:00:29]}  Kh8 {[%clk 0:01:43]} 20. Bxh7 {[%clk 0:00:29]}  Nf6 {[%clk 0:00:12]} 21. Bxf6 {[%clk 0:00:27]}  gxf6 {[%clk 0:00:12]} 22. Bf5 {[%clk 0:00:24]}  Qxf5 {[%clk 0:00:00]} 23. Nxf5 {[%clk 0:00:24]} 1-0

[Event "December 12 Early 2023"]
[Site "https://www.chess.com"]
[Date "2023.12.12"]
[Round "8"]
[White "Novikov, Evgenij"]
[Black "Ernst, Luca"]
[Result "1-0"]
[Board "77"]
[TimeControl "180+1"]
[WhiteFideId "4125380"]
[BlackFideId "45117055"]
[WhiteElo "2606"]
[BlackElo "2346"]
[WhiteTeam "RUS"]
[BlackTeam "FRA"]
[WhiteClock "0:00:05"]
[BlackClock "0:00:04"]

1. e4 {[%clk 0:02:44]}  c5 {[%clk 0:02:54]} 2. Nc3 {[%clk 0:02:43]}  Nc6 {[%clk 0:02:53]} 3. Bb5 {[%clk 0:02:36]}  Nd4 {[%clk 0:02:53]} 4. Nge2 {[%clk 0:02:34]}  a6 {[%clk 0:02:49]} 5. Bd3 {[%clk 0:02:33]}  g6 {[%clk 0:02:48]} 6. Nxd4 {[%clk 0:02:32]}  cxd4 {[%clk 0:02:48]} 7. Ne2 {[%clk 0:02:33]}  Bg7 {[%clk 0:02:48]} 8. O-O {[%clk 0:02:26]}  e6 {[%clk 0:02:39]} 9. c3 {[%clk 0:02:20]}  dxc3 {[%clk 0:02:38]} 10. dxc3 {[%clk 0:02:16]}  Ne7 {[%clk 0:02:39]} 11. Bf4 {[%clk 0:02:14]}  d5 {[%clk 0:02:36]} 12. Qc2 {[%clk 0:02:00]}  O-O {[%clk 0:02:34]} 13. Rad1 {[%clk 0:01:59]}  Qb6 {[%clk 0:02:20]} 14. Be3 {[%clk 0:01:51]}  Qa5 {[%clk 0:02:18]} 15. h3 {[%clk 0:01:36]}  b5 {[%clk 0:02:09]} 16. Bc5 {[%clk 0:01:32]}  Qc7 {[%clk 0:02:03]} 17. Bxe7 {[%clk 0:01:11]}  Qxe7 {[%clk 0:02:03]} 18. exd5 {[%clk 0:01:12]}  exd5 {[%clk 0:02:03]} 19. Rfe1 {[%clk 0:01:12]}  Qg5 {[%clk 0:01:56]} 20. Qd2 {[%clk 0:01:04]}  Qxd2 {[%clk 0:01:30]} 21. Rxd2 {[%clk 0:01:05]}  Bd7 {[%clk 0:01:25]} 22. Bc2 {[%clk 0:00:59]}  Rfe8 {[%clk 0:01:07]} 23. Kf1 {[%clk 0:00:58]}  a5 {[%clk 0:00:54]} 24. Bb3 {[%clk 0:00:55]}  b4 {[%clk 0:00:47]} 25. Rxd5 {[%clk 0:00:49]}  Be6 {[%clk 0:00:34]} 26. Rd2 {[%clk 0:00:42]}  Bxb3 {[%clk 0:00:29]} 27. axb3 {[%clk 0:00:43]}  bxc3 {[%clk 0:00:26]} 28. bxc3 {[%clk 0:00:40]}  a4 {[%clk 0:00:17]} 29. bxa4 {[%clk 0:00:41]}  Rxa4 {[%clk 0:00:17]} 30. Nd4 {[%clk 0:00:40]}  Rd8 {[%clk 0:00:08]} 31. Red1 {[%clk 0:00:36]}  h5 {[%clk 0:00:04]} 32. g3 {[%clk 0:00:36]}  Rc4 {[%clk 0:00:04]} 33. Rd3 {[%clk 0:00:35]}  Rd7 {[%clk 0:00:02]} 34. Ne2 {[%clk 0:00:35]}  Rxd3 {[%clk 0:00:02]} 35. Rxd3 {[%clk 0:00:36]}  Kf8 {[%clk 0:00:02]} 36. Ke1 {[%clk 0:00:34]}  Ke8 {[%clk 0:00:03]} 37. Kd2 {[%clk 0:00:35]}  Ke7 {[%clk 0:00:03]} 38. Nd4 {[%clk 0:00:34]}  Ra4 {[%clk 0:00:04]} 39. Nc2 {[%clk 0:00:32]}  Ra2 {[%clk 0:00:03]} 40. f4 {[%clk 0:00:28]}  h4 {[%clk 0:00:02]} 41. g4 {[%clk 0:00:27]}  Bh6 {[%clk 0:00:02]} 42. Rd4 {[%clk 0:00:27]}  Ra5 {[%clk 0:00:01]} 43. Kd3 {[%clk 0:00:27]}  Ra2 {[%clk 0:00:01]} 44. Re4+ {[%clk 0:00:26]}  Kd7 {[%clk 0:00:01]} 45. Rd4+ {[%clk 0:00:25]}  Kc7 {[%clk 0:00:01]} 46. Re4 {[%clk 0:00:15]}  Bg7 {[%clk 0:00:01]} 47. f5 {[%clk 0:00:13]}  Kd6 {[%clk 0:00:02]} 48. fxg6 {[%clk 0:00:13]}  fxg6 {[%clk 0:00:03]} 49. Re2 {[%clk 0:00:09]}  Ra8 {[%clk 0:00:02]} 50. Nd4 {[%clk 0:00:09]}  Rc8 {[%clk 0:00:03]} 51. Re6+ {[%clk 0:00:07]}  Kd5 {[%clk 0:00:03]} 52. Rxg6 {[%clk 0:00:07]}  Bxd4 {[%clk 0:00:03]} 53. cxd4 {[%clk 0:00:07]}  Ra8 {[%clk 0:00:04]} 54. Rg5+ {[%clk 0:00:06]}  Kd6 {[%clk 0:00:04]} 55. Rh5 {[%clk 0:00:06]}  Ra3+ {[%clk 0:00:05]} 56. Ke4 {[%clk 0:00:07]}  Rxh3 {[%clk 0:00:05]} 57. Rh6+ {[%clk 0:00:07]}  Ke7 {[%clk 0:00:05]} 58. d5 {[%clk 0:00:04]}  Rh1 {[%clk 0:00:05]} 59. Rh7+ {[%clk 0:00:03]}  Kd6 {[%clk 0:00:05]} 60. Rh6+ {[%clk 0:00:04]}  Ke7 {[%clk 0:00:05]} 61. g5 {[%clk 0:00:03]}  Re1+ {[%clk 0:00:05]} 62. Kf5 {[%clk 0:00:03]}  Rf1+ {[%clk 0:00:05]} 63. Kg6 {[%clk 0:00:03]}  Rf4 {[%clk 0:00:03]} 64. Kg7 {[%clk 0:00:02]}  Rg4 {[%clk 0:00:03]} 65. d6+ {[%clk 0:00:02]}  Kd7 {[%clk 0:00:02]} 66. Kf6 {[%clk 0:00:02]}  Rf4+ {[%clk 0:00:02]} 67. Ke5 {[%clk 0:00:02]}  Rg4 {[%clk 0:00:03]} 68. Kf5 {[%clk 0:00:02]}  Rd4 {[%clk 0:00:03]} 69. g6 {[%clk 0:00:02]}  Rxd6 {[%clk 0:00:03]} 70. Rxh4 {[%clk 0:00:02]}  Rd1 {[%clk 0:00:03]} 71. Re4 {[%clk 0:00:01]}  Rg1 {[%clk 0:00:03]} 72. Kf6 {[%clk 0:00:01]}  Rf1+ {[%clk 0:00:02]} 73. Kg7 {[%clk 0:00:02]}  Rg1 {[%clk 0:00:03]} 74. Kf7 {[%clk 0:00:02]}  Rf1+ {[%clk 0:00:03]} 75. Kg8 {[%clk 0:00:02]}  Rg1 {[%clk 0:00:04]} 76. g7 {[%clk 0:00:03]}  Kd8 {[%clk 0:00:04]} 77. Re5 {[%clk 0:00:03]}  Rg2 {[%clk 0:00:04]} 78. Kf7 {[%clk 0:00:03]}  Rf2+ {[%clk 0:00:04]} 79. Kg6 {[%clk 0:00:03]}  Rg2+ {[%clk 0:00:04]} 80. Rg5 {[%clk 0:00:03]}  Rxg5+ {[%clk 0:00:05]} 81. Kxg5 {[%clk 0:00:04]}  Ke7 {[%clk 0:00:04]} 82. g8=Q {[%clk 0:00:05]} 1-0

[Event "December 12 Early 2023"]
[Site "https://www.chess.com"]
[Date "2023.12.12"]
[Round "8"]
[White "Assylov, Miras"]
[Black "Rodriguez Avila, Alvaro"]
[Result "1-0"]
[Board "79"]
[TimeControl "180+1"]
[WhiteFideId "13728873"]
[BlackFideId "24570249"]
[WhiteElo "2598"]
[BlackElo "2281"]
[WhiteTeam "KAZ"]
[BlackTeam "ESP"]
[WhiteClock "0:01:18"]
[BlackClock "0:00:00"]

1. b3 {[%clk 0:03:00]}  e5 {[%clk 0:02:59]} 2. Bb2 {[%clk 0:03:00]}  Nc6 {[%clk 0:02:59]} 3. e3 {[%clk 0:02:58]}  Nge7 {[%clk 0:02:59]} 4. d4 {[%clk 0:02:51]}  exd4 {[%clk 0:02:54]} 5. exd4 {[%clk 0:02:50]}  d5 {[%clk 0:02:55]} 6. Nf3 {[%clk 0:02:48]}  Ng6 {[%clk 0:02:53]} 7. g3 {[%clk 0:02:31]}  Bb4+ {[%clk 0:02:52]} 8. c3 {[%clk 0:02:29]}  Qe7+ {[%clk 0:02:48]} 9. Qe2 {[%clk 0:02:27]}  Qxe2+ {[%clk 0:02:45]} 10. Bxe2 {[%clk 0:02:27]}  Bd6 {[%clk 0:02:43]} 11. Na3 {[%clk 0:02:26]}  a6 {[%clk 0:02:40]} 12. Nc2 {[%clk 0:02:25]}  O-O {[%clk 0:02:40]} 13. Ne3 {[%clk 0:02:25]}  Be6 {[%clk 0:02:35]} 14. Ng5 {[%clk 0:02:23]}  Nce7 {[%clk 0:02:09]} 15. Nxe6 {[%clk 0:02:22]}  fxe6 {[%clk 0:02:10]} 16. O-O {[%clk 0:02:20]}  e5 {[%clk 0:02:08]} 17. dxe5 {[%clk 0:02:13]}  Nxe5 {[%clk 0:02:01]} 18. Rad1 {[%clk 0:02:12]}  c6 {[%clk 0:02:01]} 19. c4 {[%clk 0:02:10]}  Nf3+ {[%clk 0:01:04]} 20. Kg2 {[%clk 0:02:08]}  Ng5 {[%clk 0:00:50]} 21. cxd5 {[%clk 0:02:06]}  Bc5 {[%clk 0:00:45]} 22. dxc6 {[%clk 0:02:05]}  Nxc6 {[%clk 0:00:43]} 23. Rd7 {[%clk 0:02:01]}  Ne7 {[%clk 0:00:21]} 24. Nd5 {[%clk 0:01:54]}  Rae8 {[%clk 0:00:14]} 25. b4 {[%clk 0:01:54]}  Nxd5 {[%clk 0:00:00]} 26. Bc4 {[%clk 0:01:18]} 1-0

[Event "December 12 Early 2023"]
[Site "https://www.chess.com"]
[Date "2023.12.12"]
[Round "8"]
[White "Shubenkova, Veronika"]
[Black "Semenova, Alina"]
[Result "1-0"]
[Board "81"]
[TimeControl "180+1"]
[WhiteFideId "44124040"]
[BlackFideId "24113875"]
[WhiteElo "2592"]
[BlackElo "2225"]
[WhiteTeam "RUS"]
[BlackTeam "RUS"]
[WhiteClock "0:01:05"]
[BlackClock "0:00:00"]

1. d4 {[%clk 0:03:00]}  Nf6 {[%clk 0:02:55]} 2. e3 {[%clk 0:03:00]}  e6 {[%clk 0:02:55]} 3. f4 {[%clk 0:03:00]}  d5 {[%clk 0:02:55]} 4. Nf3 {[%clk 0:03:00]}  c5 {[%clk 0:02:54]} 5. c3 {[%clk 0:03:00]}  Nbd7 {[%clk 0:02:52]} 6. Bd3 {[%clk 0:03:00]}  Be7 {[%clk 0:02:50]} 7. Nbd2 {[%clk 0:03:00]}  O-O {[%clk 0:02:50]} 8. Qe2 {[%clk 0:03:00]}  b6 {[%clk 0:02:50]} 9. Ne5 {[%clk 0:03:00]}  Bb7 {[%clk 0:02:50]} 10. O-O {[%clk 0:03:00]}  Ne4 {[%clk 0:02:48]} 11. Nxe4 {[%clk 0:03:00]}  dxe4 {[%clk 0:02:47]} 12. Bc2 {[%clk 0:03:00]}  f5 {[%clk 0:02:28]} 13. Bb3 {[%clk 0:02:57]}  Bd5 {[%clk 0:02:25]} 14. Bd2 {[%clk 0:02:47]}  Nxe5 {[%clk 0:02:20]} 15. fxe5 {[%clk 0:02:42]}  Bxb3 {[%clk 0:02:11]} 16. axb3 {[%clk 0:02:42]}  Qd7 {[%clk 0:02:07]} 17. Ra4 {[%clk 0:02:29]}  Rfd8 {[%clk 0:02:03]} 18. Rfa1 {[%clk 0:02:27]}  cxd4 {[%clk 0:01:37]} 19. exd4 {[%clk 0:02:18]}  a5 {[%clk 0:01:28]} 20. b4 {[%clk 0:02:15]}  Qc7 {[%clk 0:01:19]} 21. bxa5 {[%clk 0:02:15]}  bxa5 {[%clk 0:01:19]} 22. b4 {[%clk 0:02:15]}  Rd5 {[%clk 0:00:57]} 23. Be1 {[%clk 0:02:04]}  Bd8 {[%clk 0:00:22]} 24. Qa2 {[%clk 0:02:03]}  Qf7 {[%clk 0:00:16]} 25. Qe2 {[%clk 0:01:57]}  Qg6 {[%clk 0:00:15]} 26. Rd1 {[%clk 0:01:45]}  f4 {[%clk 0:00:15]} 27. c4 {[%clk 0:01:41]}  Rd7 {[%clk 0:00:11]} 28. bxa5 {[%clk 0:01:35]}  Rf7 {[%clk 0:00:11]} 29. Ra2 {[%clk 0:01:29]}  f3 {[%clk 0:00:10]} 30. Qc2 {[%clk 0:01:13]}  Rf4 {[%clk 0:00:04]} 31. Bg3 {[%clk 0:01:11]}  Rg4 {[%clk 0:00:04]} 32. gxf3 {[%clk 0:01:08]}  exf3 {[%clk 0:00:05]} 33. Qxg6 {[%clk 0:01:07]}  Rxg6 {[%clk 0:00:06]} 34. Kf2 {[%clk 0:01:07]}  Rxa5 {[%clk 0:00:05]} 35. Rxa5 {[%clk 0:01:07]}  Bxa5 {[%clk 0:00:06]} 36. Kxf3 {[%clk 0:01:07]}  Kf7 {[%clk 0:00:05]} 37. d5 {[%clk 0:01:07]}  exd5 {[%clk 0:00:06]} 38. cxd5 {[%clk 0:01:08]}  Ra6 {[%clk 0:00:02]} 39. Ra1 {[%clk 0:01:07]}  Ra7 {[%clk 0:00:01]} 40. Bf2 {[%clk 0:01:06]}  Bb6 {[%clk 0:00:00]} 41. Rxa7+ {[%clk 0:01:05]} 1-0

[Event "December 12 Early 2023"]
[Site "https://www.chess.com"]
[Date "2023.12.12"]
[Round "8"]
[White "Play, Gilles"]
[Black "Srihari L R"]
[Result "0-1"]
[Board "82"]
[TimeControl "180+1"]
[WhiteFideId "45130892"]
[BlackFideId "46617116"]
[WhiteElo "2517"]
[BlackElo "2726"]
[WhiteTeam "FRA"]
[BlackTeam "IND"]
[WhiteClock "0:00:09"]
[BlackClock "0:00:08"]

1. e4 {[%clk 0:03:00]}  c5 {[%clk 0:02:57]} 2. c3 {[%clk 0:03:00]}  Nf6 {[%clk 0:02:57]} 3. e5 {[%clk 0:02:59]}  Nd5 {[%clk 0:02:55]} 4. d4 {[%clk 0:02:58]}  cxd4 {[%clk 0:02:54]} 5. Nf3 {[%clk 0:02:57]}  Nc6 {[%clk 0:02:53]} 6. Bc4 {[%clk 0:02:52]}  Nb6 {[%clk 0:02:51]} 7. Bb3 {[%clk 0:02:53]}  d6 {[%clk 0:02:50]} 8. exd6 {[%clk 0:02:52]}  Qxd6 {[%clk 0:02:48]} 9. O-O {[%clk 0:02:52]}  Bf5 {[%clk 0:02:45]} 10. Na3 {[%clk 0:02:51]}  a6 {[%clk 0:02:41]} 11. Re1 {[%clk 0:02:34]}  e6 {[%clk 0:02:38]} 12. Nxd4 {[%clk 0:02:17]}  Nxd4 {[%clk 0:02:36]} 13. cxd4 {[%clk 0:02:18]}  Be7 {[%clk 0:02:35]} 14. Qf3 {[%clk 0:02:17]}  Qd7 {[%clk 0:02:12]} 15. Bf4 {[%clk 0:01:46]}  O-O {[%clk 0:02:05]} 16. Be5 {[%clk 0:01:37]}  Bg6 {[%clk 0:01:58]} 17. Rac1 {[%clk 0:01:30]}  Rac8 {[%clk 0:01:58]} 18. Nc2 {[%clk 0:01:22]}  Nc4 {[%clk 0:01:44]} 19. Bxc4 {[%clk 0:01:04]}  Rxc4 {[%clk 0:01:41]} 20. Ne3 {[%clk 0:01:04]}  Rcc8 {[%clk 0:01:39]} 21. d5 {[%clk 0:01:00]}  Bb4 {[%clk 0:01:24]} 22. Red1 {[%clk 0:00:55]}  Rxc1 {[%clk 0:01:00]} 23. Rxc1 {[%clk 0:00:55]}  Bd2 {[%clk 0:00:59]} 24. Rc7 {[%clk 0:00:53]}  Qb5 {[%clk 0:00:54]} 25. Nc4 {[%clk 0:00:35]}  Bg5 {[%clk 0:00:42]} 26. dxe6 {[%clk 0:00:34]}  f6 {[%clk 0:00:11]} 27. Bd6 {[%clk 0:00:24]}  Re8 {[%clk 0:00:11]} 28. h4 {[%clk 0:00:22]}  Bh6 {[%clk 0:00:09]} 29. h5 {[%clk 0:00:19]}  Bxh5 {[%clk 0:00:08]} 30. Qxb7 {[%clk 0:00:18]}  Qxb7 {[%clk 0:00:08]} 31. Rxb7 {[%clk 0:00:19]}  Rxe6 {[%clk 0:00:09]} 32. Rb8+ {[%clk 0:00:17]}  Kf7 {[%clk 0:00:09]} 33. Bc5 {[%clk 0:00:15]}  Re1+ {[%clk 0:00:08]} 34. Kh2 {[%clk 0:00:15]}  Bf4+ {[%clk 0:00:08]} 35. g3 {[%clk 0:00:13]}  Bxb8 {[%clk 0:00:09]} 36. Ne3 {[%clk 0:00:09]}  Bf3 {[%clk 0:00:08]} 0-1

[Event "December 12 Early 2023"]
[Site "https://www.chess.com"]
[Date "2023.12.12"]
[Round "8"]
[White "Kislinsky, Alexey"]
[Black "Dubnevych, Maksym"]
[Result "1-0"]
[Board "84"]
[TimeControl "180+1"]
[WhiteFideId "14108801"]
[BlackFideId "14184001"]
[WhiteElo "2646"]
[BlackElo "2514"]
[WhiteTeam "CZE"]
[BlackTeam "UKR"]
[WhiteClock "0:01:02"]
[BlackClock "0:00:28"]

1. e4 {[%clk 0:03:00]}  c5 {[%clk 0:02:57]} 2. c3 {[%clk 0:03:00]}  Nf6 {[%clk 0:02:58]} 3. e5 {[%clk 0:03:00]}  Nd5 {[%clk 0:02:58]} 4. Bc4 {[%clk 0:03:01]}  Nb6 {[%clk 0:02:58]} 5. Bb3 {[%clk 0:03:01]}  c4 {[%clk 0:02:58]} 6. Bc2 {[%clk 0:03:01]}  Nc6 {[%clk 0:02:58]} 7. Nf3 {[%clk 0:03:01]}  g5 {[%clk 0:02:59]} 8. Nxg5 {[%clk 0:02:51]}  Nxe5 {[%clk 0:02:58]} 9. O-O {[%clk 0:02:48]}  d5 {[%clk 0:02:53]} 10. Re1 {[%clk 0:02:48]}  Bg7 {[%clk 0:02:47]} 11. Rxe5 {[%clk 0:02:08]}  Bxe5 {[%clk 0:02:46]} 12. Qh5 {[%clk 0:02:08]}  Rf8 {[%clk 0:02:09]} 13. Nxh7 {[%clk 0:02:07]}  Qd6 {[%clk 0:01:48]} 14. Nxf8 {[%clk 0:02:07]}  Kxf8 {[%clk 0:01:49]} 15. d4 {[%clk 0:02:06]}  cxd3 {[%clk 0:01:48]} 16. Bxd3 {[%clk 0:02:07]}  Ke8 {[%clk 0:01:36]} 17. Nd2 {[%clk 0:02:02]}  Be6 {[%clk 0:01:31]} 18. Nf3 {[%clk 0:02:01]}  Bf6 {[%clk 0:01:31]} 19. Bg5 {[%clk 0:01:59]}  Bd7 {[%clk 0:01:23]} 20. Bxf6 {[%clk 0:01:58]}  Qxf6 {[%clk 0:01:24]} 21. Qe5 {[%clk 0:01:56]}  Qh6 {[%clk 0:01:22]} 22. Re1 {[%clk 0:01:54]}  e6 {[%clk 0:01:21]} 23. Qe3 {[%clk 0:01:30]}  Qg7 {[%clk 0:01:19]} 24. Ne5 {[%clk 0:01:29]}  Ke7 {[%clk 0:01:09]} 25. Qc5+ {[%clk 0:01:28]}  Kd8 {[%clk 0:01:08]} 26. Qd4 {[%clk 0:01:21]}  Qf8 {[%clk 0:01:04]} 27. a3 {[%clk 0:01:09]}  f6 {[%clk 0:01:01]} 28. Nxd7 {[%clk 0:01:09]}  Kxd7 {[%clk 0:00:59]} 29. Bb5+ {[%clk 0:01:10]}  Ke7 {[%clk 0:00:56]} 30. c4 {[%clk 0:01:05]}  Kf7 {[%clk 0:00:48]} 31. c5 {[%clk 0:01:03]}  Nc8 {[%clk 0:00:28]} 32. Bd7 {[%clk 0:01:02]} 1-0

[Event "December 12 Early 2023"]
[Site "https://www.chess.com"]
[Date "2023.12.12"]
[Round "8"]
[White "Berezin, Viktor"]
[Black "Banzea, Alexandru-Bogdan"]
[Result "1-0"]
[Board "86"]
[TimeControl "180+1"]
[WhiteFideId "14107872"]
[BlackFideId "1232622"]
[WhiteElo "2497"]
[BlackElo "2594"]
[WhiteTeam "UKR"]
[BlackTeam "ROU"]
[WhiteClock "0:00:30"]
[BlackClock "0:00:00"]

1. d4 {[%clk 0:03:00]}  Nf6 {[%clk 0:03:00]} 2. Nf3 {[%clk 0:03:00]}  g6 {[%clk 0:03:00]} 3. g3 {[%clk 0:03:00]}  Bg7 {[%clk 0:03:01]} 4. Bg2 {[%clk 0:03:00]}  O-O {[%clk 0:03:02]} 5. O-O {[%clk 0:03:01]}  d6 {[%clk 0:03:03]} 6. a4 {[%clk 0:02:57]}  c6 {[%clk 0:03:01]} 7. a5 {[%clk 0:02:57]}  Nbd7 {[%clk 0:03:01]} 8. Nc3 {[%clk 0:02:58]}  Qc7 {[%clk 0:03:00]} 9. e4 {[%clk 0:02:56]}  e5 {[%clk 0:03:01]} 10. h3 {[%clk 0:02:56]}  Re8 {[%clk 0:02:59]} 11. Re1 {[%clk 0:02:57]}  Rb8 {[%clk 0:02:58]} 12. Be3 {[%clk 0:02:53]}  b5 {[%clk 0:02:49]} 13. axb6 {[%clk 0:02:52]}  axb6 {[%clk 0:02:50]} 14. d5 {[%clk 0:02:50]}  Bb7 {[%clk 0:02:44]} 15. Nd2 {[%clk 0:02:47]}  b5 {[%clk 0:01:46]} 16. dxc6 {[%clk 0:02:37]}  Bxc6 {[%clk 0:01:47]} 17. Nb3 {[%clk 0:02:31]}  Ra8 {[%clk 0:01:41]} 18. Nd5 {[%clk 0:02:24]}  Nxd5 {[%clk 0:01:31]} 19. exd5 {[%clk 0:02:22]}  Bb7 {[%clk 0:01:31]} 20. Rxa8 {[%clk 0:02:07]}  Rxa8 {[%clk 0:01:26]} 21. c3 {[%clk 0:02:06]}  Nb6 {[%clk 0:01:17]} 22. Qe2 {[%clk 0:01:47]}  Nxd5 {[%clk 0:01:00]} 23. Qxb5 {[%clk 0:01:36]}  Bc6 {[%clk 0:01:00]} 24. Qc4 {[%clk 0:01:07]}  Nxe3 {[%clk 0:00:29]} 25. Qxc6 {[%clk 0:01:00]}  Qxc6 {[%clk 0:00:29]} 26. Bxc6 {[%clk 0:01:01]}  Rb8 {[%clk 0:00:28]} 27. Rxe3 {[%clk 0:00:54]}  Rxb3 {[%clk 0:00:28]} 28. Re2 {[%clk 0:00:55]}  Kf8 {[%clk 0:00:16]} 29. Rd2 {[%clk 0:00:50]}  Bh6 {[%clk 0:00:12]} 30. Rc2 {[%clk 0:00:46]}  Ke7 {[%clk 0:00:10]} 31. Bd5 {[%clk 0:00:46]}  Rb5 {[%clk 0:00:08]} 32. c4 {[%clk 0:00:46]}  Rb4 {[%clk 0:00:08]} 33. Kf1 {[%clk 0:00:45]}  Bf8 {[%clk 0:00:04]} 34. Ke2 {[%clk 0:00:44]}  f5 {[%clk 0:00:04]} 35. Kd2 {[%clk 0:00:41]}  Kd8 {[%clk 0:00:04]} 36. Kc3 {[%clk 0:00:41]}  Rb8 {[%clk 0:00:03]} 37. b4 {[%clk 0:00:42]}  Rc8 {[%clk 0:00:02]} 38. Ra2 {[%clk 0:00:42]}  Be7 {[%clk 0:00:01]} 39. Ra7 {[%clk 0:00:42]}  Rc7 {[%clk 0:00:02]} 40. Ra8+ {[%clk 0:00:42]}  Rc8 {[%clk 0:00:03]} 41. Ra6 {[%clk 0:00:37]}  Rc7 {[%clk 0:00:03]} 42. b5 {[%clk 0:00:37]}  Rc8 {[%clk 0:00:02]} 43. Kb4 {[%clk 0:00:37]}  g5 {[%clk 0:00:02]} 44. b6 {[%clk 0:00:37]}  h5 {[%clk 0:00:02]} 45. Ra7 {[%clk 0:00:36]}  g4 {[%clk 0:00:02]} 46. hxg4 {[%clk 0:00:36]}  hxg4 {[%clk 0:00:02]} 47. Be6 {[%clk 0:00:35]}  Rb8 {[%clk 0:00:02]} 48. Kb5 {[%clk 0:00:35]}  f4 {[%clk 0:00:03]} 49. Bxg4 {[%clk 0:00:35]}  Ke8 {[%clk 0:00:02]} 50. b7 {[%clk 0:00:33]}  Bd8 {[%clk 0:00:03]} 51. Kc6 {[%clk 0:00:31]}  fxg3 {[%clk 0:00:02]} 52. fxg3 {[%clk 0:00:31]}  e4 {[%clk 0:00:00]} 53. Ra8 {[%clk 0:00:30]} 1-0

[Event "December 12 Early 2023"]
[Site "https://www.chess.com"]
[Date "2023.12.12"]
[Round "8"]
[White "Lehtosaari, Mauri"]
[Black "Janaszak, Dawid"]
[Result "0-1"]
[Board "87"]
[TimeControl "180+1"]
[WhiteFideId "501999"]
[BlackFideId "1119206"]
[WhiteElo "2484"]
[BlackElo "2594"]
[WhiteTeam "FIN"]
[BlackTeam "POL"]
[WhiteClock "0:00:12"]
[BlackClock "0:01:44"]

1. d4 {[%clk 0:02:23]}  d5 {[%clk 0:02:57]} 2. c4 {[%clk 0:02:19]}  e6 {[%clk 0:02:54]} 3. Nc3 {[%clk 0:02:18]}  c5 {[%clk 0:02:54]} 4. cxd5 {[%clk 0:02:18]}  cxd4 {[%clk 0:02:55]} 5. Qa4+ {[%clk 0:02:14]}  Bd7 {[%clk 0:02:55]} 6. Qxd4 {[%clk 0:02:13]}  exd5 {[%clk 0:02:55]} 7. Qxd5 {[%clk 0:02:10]}  Nc6 {[%clk 0:02:54]} 8. a3 {[%clk 0:02:05]}  Nf6 {[%clk 0:02:54]} 9. Qd1 {[%clk 0:02:04]}  Bc5 {[%clk 0:02:54]} 10. Nf3 {[%clk 0:01:59]}  Qe7 {[%clk 0:02:54]} 11. e3 {[%clk 0:01:43]}  O-O-O {[%clk 0:02:54]} 12. Qc2 {[%clk 0:01:38]}  Kb8 {[%clk 0:02:49]} 13. Be2 {[%clk 0:01:37]}  g5 {[%clk 0:02:50]} 14. Nxg5 {[%clk 0:01:27]}  Rhg8 {[%clk 0:02:48]} 15. Nge4 {[%clk 0:01:26]}  Rxg2 {[%clk 0:02:43]} 16. Bf3 {[%clk 0:01:17]}  Rg6 {[%clk 0:02:39]} 17. Bd2 {[%clk 0:00:37]}  Ne5 {[%clk 0:02:37]} 18. Be2 {[%clk 0:00:38]}  Bf5 {[%clk 0:02:34]} 19. O-O-O {[%clk 0:00:37]}  Bxa3 {[%clk 0:02:22]} 20. Qb3 {[%clk 0:00:32]}  Nxe4 {[%clk 0:02:16]} 21. Qxa3 {[%clk 0:00:27]}  Qxa3 {[%clk 0:02:12]} 22. bxa3 {[%clk 0:00:28]}  Nxf2 {[%clk 0:02:13]} 23. Rhf1 {[%clk 0:00:26]}  Nxd1 {[%clk 0:01:58]} 24. Rxf5 {[%clk 0:00:24]}  Nxc3 {[%clk 0:01:55]} 25. Bxc3 {[%clk 0:00:25]}  Rc8 {[%clk 0:01:55]} 26. Rxe5 {[%clk 0:00:20]}  Rxc3+ {[%clk 0:01:54]} 27. Kb2 {[%clk 0:00:21]}  Rcc6 {[%clk 0:01:50]} 28. Bf3 {[%clk 0:00:19]}  Rce6 {[%clk 0:01:47]} 29. Rf5 {[%clk 0:00:12]}  Rgf6 {[%clk 0:01:44]} 0-1

[Event "December 12 Early 2023"]
[Site "https://www.chess.com"]
[Date "2023.12.12"]
[Round "8"]
[White "Cordoba Roa, Angel Gabriel"]
[Black "Goncalves, Davi Sulzbacher"]
[Result "1-0"]
[Board "88"]
[TimeControl "180+1"]
[WhiteFideId "3957624"]
[BlackFideId "2154510"]
[WhiteElo "2573"]
[BlackElo "2475"]
[WhiteTeam "COL"]
[BlackTeam "BRA"]
[WhiteClock "0:00:57"]
[BlackClock "0:00:03"]

1. e4 {[%clk 0:03:00]}  c5 {[%clk 0:02:59]} 2. Nf3 {[%clk 0:03:01]}  Nc6 {[%clk 0:02:59]} 3. Bb5 {[%clk 0:03:01]}  g6 {[%clk 0:02:59]} 4. O-O {[%clk 0:03:01]}  Bg7 {[%clk 0:02:59]} 5. c3 {[%clk 0:03:01]}  Nf6 {[%clk 0:02:55]} 6. Re1 {[%clk 0:03:01]}  O-O {[%clk 0:02:54]} 7. d4 {[%clk 0:03:01]}  cxd4 {[%clk 0:02:51]} 8. cxd4 {[%clk 0:03:02]}  d5 {[%clk 0:02:51]} 9. e5 {[%clk 0:03:02]}  Ne4 {[%clk 0:02:52]} 10. Nc3 {[%clk 0:03:03]}  Nxc3 {[%clk 0:02:51]} 11. bxc3 {[%clk 0:03:03]}  Qa5 {[%clk 0:02:48]} 12. Qb3 {[%clk 0:02:59]}  a6 {[%clk 0:02:40]} 13. Bxc6 {[%clk 0:02:59]}  bxc6 {[%clk 0:02:40]} 14. Ba3 {[%clk 0:03:00]}  Bg4 {[%clk 0:02:30]} 15. Bxe7 {[%clk 0:03:00]}  Rfb8 {[%clk 0:02:24]} 16. Bb4 {[%clk 0:03:00]}  Qd8 {[%clk 0:02:23]} 17. Qd1 {[%clk 0:02:57]}  a5 {[%clk 0:02:21]} 18. Ba3 {[%clk 0:02:58]}  Rb5 {[%clk 0:02:12]} 19. h3 {[%clk 0:02:56]}  Bf5 {[%clk 0:02:12]} 20. Nd2 {[%clk 0:02:43]}  Rab8 {[%clk 0:02:00]} 21. Nb3 {[%clk 0:02:43]}  Qh4 {[%clk 0:01:48]} 22. Nc5 {[%clk 0:02:30]}  Bh6 {[%clk 0:01:37]} 23. Qf3 {[%clk 0:02:14]}  Bb1 {[%clk 0:00:55]} 24. Nd7 {[%clk 0:01:49]}  R8b7 {[%clk 0:00:36]} 25. Nf6+ {[%clk 0:01:47]}  Kh8 {[%clk 0:00:36]} 26. e6 {[%clk 0:01:38]}  fxe6 {[%clk 0:00:20]} 27. Rxe6 {[%clk 0:01:39]}  Bf4 {[%clk 0:00:17]} 28. g3 {[%clk 0:01:29]}  Qxh3 {[%clk 0:00:17]} 29. Re8+ {[%clk 0:01:29]}  Kg7 {[%clk 0:00:17]} 30. Qxf4 {[%clk 0:01:30]}  Be4 {[%clk 0:00:16]} 31. Rg8+ {[%clk 0:00:55]}  Kf7 {[%clk 0:00:13]} 32. Nxe4+ {[%clk 0:00:56]}  Ke6 {[%clk 0:00:03]} 33. Ng5+ {[%clk 0:00:56]}  Kd7 {[%clk 0:00:03]} 34. Qf7# {[%clk 0:00:57]} 1-0